bitfinex/quotes_SOLUSD_20260117
["timestamp","ask_amount","ask_price","bid_price","bid_amount"]
[1768685757738,8.99112857,144.38,144.36,32.26957892]
[1768685758050,6.92579485,144.39,144.37,2.26957892]
[1768685758258,21.88973853,144.41,144.37,30.0]
[1768685758640,2.06496152,144.4,144.37,30.0]
[1768685759547,8.99020478,144.4,144.37,30.0]
[1768685760256,8.99020478,144.4,144.38,2.26957892]
[1768685760553,8.99020478,144.4,144.38,32.20957892]
[1768685764842,11.30253444,144.4,144.38,30.0]
[1768685766664,11.30253444,144.4,144.38,29.94]
[1768685768665,8.99020478,144.4,144.38,32.20957892]
[1768685768961,6.92524326,144.4,144.38,32.20957892]
[1768685769764,4.57729118,144.41,144.39,2.26957892]
[1768685769765,0.2,144.41,144.39,2.26957892]
[1768685769937,0.2,144.41,144.39,32.26957892]
[1768685775983,0.2,144.41,144.4,2.26957892]
[1768685776286,0.2,144.41,144.4,32.20957892]
[1768685781174,0.2,144.42,144.41,2.26957892]
[1768685781374,0.2,144.42,144.41,32.26957892]
[1768685788286,0.2,144.42,144.41,30.0]
[1768685791669,0.2,144.42,144.41,32.23307332]
[1768685798997,0.2,144.42,144.41,30.0]
[1768685802203,9.18683967,144.43,144.41,32.27700861]
[1768685802383,11.57404163,144.43,144.41,30.0]
[1768685803689,2.38720196,144.41,144.37,6.92633707]
[1768685803888,2.38720196,144.4,144.37,22.08633707]
[1768685804184,2.38720196,144.4,144.38,2.27700861]
[1768685804395,4.45026026,144.41,144.38,2.27700861]
[1768685805105,11.37450897,144.42,144.38,2.27700861]
[1768685805683,11.37450897,144.42,144.39,32.27700861]
[1768685807213,9.31145067,144.42,144.39,32.27700861]
[1768685815205,9.18702933,144.43,144.4,2.29139503]
[1768685815413,11.57216176,144.43,144.4,32.29139503]
[1768685818321,2.38513243,144.42,144.4,30.0]
[1768685822323,9.18702933,144.43,144.4,32.29139503]
[1768685822511,11.57216176,144.43,144.4,32.29139503]
[1768685824531,9.50910346,144.43,144.4,32.29139503]
[1768685824703,11.57216176,144.43,144.4,32.29139503]
[1768685830024,11.57216176,144.43,144.4,27.45139503]
[1768685830228,2.38513243,144.4,144.33,6.92817274]
[1768685830528,2.0630583,144.38,144.34,0.40452583]
[1768685830716,2.03305831,144.37,144.33,0.40452583]
[1768685830924,2.0630583,144.37,144.33,0.40452583]
[1768685831119,2.03305831,144.37,144.33,0.40290152]
[1768685831326,2.06438044,144.37,144.33,0.40290152]
[1768685831506,2.06438044,144.37,144.34,7.33082976]
[1768685833339,4.44951287,144.37,144.34,7.33082976]
[1768685833932,4.44951287,144.36,144.33,7.32670615]
[1768685834136,36.7855883,144.41,144.34,12.01]
[1768685834137,2.06438044,144.35,144.34,12.01]
[1768685834313,2.06438044,144.35,144.32,0.42813967]
[1768685834914,2.06438044,144.35,144.31,22.51604363]
[1768685836127,2.38513243,144.34,144.31,22.51604363]
[1768685840635,2.35513244,144.34,144.31,22.51604363]
[1768685841331,2.06438044,144.35,144.31,22.51604363]
[1768685841538,2.06438044,144.35,144.32,0.39766278]
[1768685842037,8.99169305,144.36,144.32,0.39766278]
[1768685842734,2.20912372,144.35,144.32,0.39766278]
[1768685845350,11.20081677,144.36,144.32,0.39766278]
[1768685847041,8.99169305,144.36,144.32,0.39766278]
[1768685847247,11.20081677,144.36,144.32,0.39766278]
[1768685847555,2.20912372,144.35,144.32,0.39766278]
[1768685851141,2.17912373,144.35,144.32,0.39766278]
[1768685854249,9.10677023,144.35,144.32,0.39766278]
[1768685855339,2.17912373,144.35,144.32,0.39766278]
[1768685856353,2.17912373,144.35,144.31,22.371092]
[1768685857353,4.24350417,144.35,144.31,22.371092]
[1768685860856,2.17912373,144.35,144.31,22.371092]
[1768685861654,9.10683305,144.35,144.31,22.371092]
[1768685861852,2.19178373,144.34,144.31,22.371092]
[1768685862056,6.92770932,144.35,144.29,6.93036922]
[1768685862057,2.06438044,144.33,144.29,6.93036922]
[1768685862276,2.03438045,144.33,144.3,15.73]
[1768685862756,2.03438045,144.33,144.3,15.99664593]
[1768685863646,2.03438045,144.33,144.3,15.42664593]
[1768685864046,4.22616418,144.33,144.3,15.42664593]
[1768685864562,2.19178373,144.33,144.3,15.42664593]
[1768685864756,4.25616417,144.33,144.3,15.42664593]
[1768685865758,6.92840951,144.34,144.3,22.0899027]
[1768685865942,9.1195356,144.35,144.31,0.24529314]
[1768685867566,2.19178373,144.34,144.31,0.24529314]
[1768685869483,2.19178373,144.34,144.31,2.30967358]
[1768685870778,2.19178373,144.34,144.31,0.24529314]
[1768685872855,2.19178373,144.34,144.31,30.24529314]
[1768685877872,2.19178373,144.34,144.31,0.24529314]
[1768685878070,9.11998657,144.34,144.31,0.24529314]
[1768685878370,2.09014097,144.33,144.3,24.3092353]
[1768685878584,2.06014098,144.33,144.3,24.3092353]
[1768685880292,2.06014098,144.33,144.3,22.24485486]
[1768685880491,6.9285858,144.33,144.29,0.20320001]
[1768685880669,2.12014096,144.31,144.29,24.8]
[1768685880870,2.09014097,144.31,144.29,24.8]
[1768685881396,2.09014097,144.31,144.28,22.3140789]
[1768685883895,2.09014097,144.31,144.28,24.37845934]
[1768685889389,2.09014097,144.31,144.28,22.3140789]
[1768685889695,2.12014096,144.3,144.25,2.34850617]
[1768685889900,2.09014097,144.3,144.27,29.76]
[1768685890482,6.93000754,144.3,144.26,24.38512855]
[1768685890696,6.92952671,144.31,144.26,24.38512855]
[1768685890880,8.99390715,144.31,144.26,22.11173024]
[1768685891807,6.9300114,144.3,144.26,22.11173024]
[1768685892129,2.12014096,144.29,144.26,22.11173024]
[1768685892415,2.09014097,144.29,144.26,24.37508818]
[1768685893406,2.09014097,144.29,144.26,24.37672164]
[1768685894788,2.12014096,144.3,144.26,24.37672164]
[1768685899299,2.09014097,144.3,144.26,24.37672164]
[1768685902403,2.09014097,144.3,144.26,22.31070774]
[1768685906023,2.06014098,144.3,144.26,22.31070774]
[1768685909631,2.06014098,144.3,144.26,7.13070774]
[1768685909808,2.003377,144.27,144.25,0.1]
[1768685910006,1.97337701,144.27,144.25,30.1]
[1768685911027,1.97337701,144.27,144.25,0.1]
[1768685912705,1.94337702,144.27,144.25,0.1]
[1768685913232,1.91337703,144.27,144.25,0.1]
[1768685920013,1.88337704,144.27,144.25,0.1]
[1768685923260,21.45015242,144.29,144.25,0.37491914]
[1768685923734,19.39223193,144.29,144.25,0.37491914]
[1768685923939,19.38413852,144.29,144.25,0.37491914]
[1768685924518,2.05792049,144.28,144.25,0.37491914]
[1768685926537,2.05792049,144.28,144.25,0.1]
[1768685926723,6.93109078,144.28,144.25,0.1]
[1768685927026,2.05792049,144.27,144.25,0.1]
[1768685927236,8.98901127,144.28,144.25,0.1]
[1768685927441,2.05792049,144.27,144.25,0.1]
[1768685933647,2.05792049,144.27,144.24,22.21287727]
[1768685944348,1.98132937,144.26,144.24,15.28]
[1768685947457,1.98132937,144.25,144.24,15.28]
[1768685947759,1.95132938,144.25,144.24,15.28]
[1768685948760,1.92132939,144.25,144.24,15.28]
[1768685949054,1.92132939,144.25,144.24,0.1]
[1768685949550,1.92132939,144.25,144.23,30.0]
[1768685951160,1.8913294,144.25,144.23,30.0]
[1768685951461,1.8913294,144.25,144.22,22.21370198]
[1768685955564,1.86132941,144.25,144.22,22.21370198]
[1768685956064,1.83132942,144.25,144.22,22.21370198]
[1768685957565,1.83132942,144.25,144.22,24.28117603]
[1768685957768,1.83132942,144.25,144.22,24.81086502]
[1768685959046,1.80132943,144.25,144.22,24.81086502]
[1768685962064,2.06747405,144.24,144.22,0.1]
[1768685962360,1.99117888,144.23,144.22,30.1]
[1768685962542,6.93244916,144.25,144.22,30.1]
[1768685963758,6.93244916,144.25,144.22,0.1]
[1768685964180,8.95362803,144.25,144.22,0.1]
[1768685964955,2.02117887,144.24,144.22,0.1]
[1768685965977,2.02117887,144.25,144.22,9.67237448]
[1768685966273,2.02117887,144.25,144.22,39.67237448]
[1768685987891,2.02117887,144.25,144.22,37.60490043]
[1768685991394,2.02117887,144.25,144.22,30.1]
[1768685991685,1.83192984,144.24,144.22,30.1]
[1768685992590,6.932455,144.25,144.22,30.1]
[1768685992591,1.97994251,144.25,144.22,30.1]
[1768685996675,1.97994251,144.25,144.22,37.03379242]
[1768685998196,1.97994251,144.25,144.22,30.1]
[1768685998676,1.97994251,144.25,144.22,37.0337761]
[1768686000200,1.97994251,144.24,144.22,30.1]
[1768686000375,1.97994251,144.22,144.21,0.1]
[1768686000572,1.94994252,144.22,144.21,0.1]
[1768686001084,4.01741657,144.22,144.21,0.1]
[1768686001288,1.94994252,144.22,144.21,0.1]
[1768686002714,1.94994252,144.22,144.2,0.1]
[1768686005988,1.91994253,144.22,144.2,0.1]
[1768686007208,8.85386478,144.22,144.2,0.1]
[1768686007408,1.91994253,144.22,144.2,0.1]
[1768686019516,8.91325126,144.24,144.21,1.97183629]
[1768686021832,10.98176974,144.24,144.21,1.97183629]
[1768686023126,1.90165487,144.23,144.2,8.90463436]
[1768686024516,1.90165487,144.24,144.21,1.86988643]
[1768686024718,3.97017335,144.24,144.21,1.86988643]
[1768686025852,1.90165487,144.23,144.21,1.86988643]
[1768686026425,10.9028991,144.25,144.21,8.80413334]
[1768686026816,1.90165487,144.24,144.21,8.80413334]
[1768686029746,1.90165487,144.22,144.2,0.1]
[1768686030855,1.90165487,144.22,144.2,7.03475854]
[1768686031842,10.90406416,144.22,144.2,0.1]
[1768686033143,9.00240929,144.22,144.2,0.1]
[1768686033455,9.00240929,144.22,144.18,22.31561995]
[1768686033456,1.90165487,144.21,144.18,24.18550638]
[1768686036866,1.90165487,144.21,144.18,9.00550638]
[1768686037046,3.97017335,144.21,144.18,9.00550638]
[1768686043042,1.90165487,144.21,144.18,9.00550638]
[1768686062870,1.79797273,144.25,144.21,1.91024517]
[1768686063052,1.79797273,144.25,144.22,1.91024517]
[1768686064069,1.79797273,144.24,144.21,19.15876365]
[1768686068755,1.79797273,144.24,144.21,26.0930586]
[1768686074484,8.73087324,144.24,144.21,19.15876365]
[1768686075277,8.73087324,144.24,144.21,19.15794221]
[1768686077983,8.73087324,144.24,144.21,17.09024517]
[1768686080386,8.73087324,144.24,144.21,1.91024517]
[1768686080889,8.73087324,144.24,144.21,17.09024517]
[1768686081688,8.73050793,144.25,144.22,1.91024517]
[1768686081875,1.84287717,144.24,144.22,1.91024517]
[1768686082984,1.84287717,144.25,144.22,1.91024517]
[1768686084292,8.77539686,144.25,144.22,1.91024517]
[1768686085676,19.39688638,144.27,144.22,1.91024517]
[1768686085677,1.84287717,144.24,144.22,1.91024517]
[1768686092192,8.77482158,144.26,144.23,1.82152592]
[1768686092780,1.84287717,144.25,144.23,1.82152592]
[1768686097104,1.84287717,144.25,144.23,8.75489611]
[1768686098504,1.84287717,144.25,144.23,1.82152592]
[1768686099108,1.84287717,144.25,144.22,10.82584469]
[1768686102410,1.92002697,144.26,144.23,8.75772925]
[1768686104214,6.93133694,144.28,144.25,1.82450508]
[1768686104514,1.92002697,144.27,144.24,23.93712031]
[1768686104900,1.92002697,144.27,144.24,26.00481735]
[1768686105290,1.92002697,144.27,144.25,1.82450508]
[1768686105485,1.92002697,144.28,144.25,1.82450508]
[1768686108112,8.85101732,144.28,144.25,1.82450508]
[1768686112019,6.93099035,144.28,144.25,1.82450508]
[1768686112396,8.82866195,144.28,144.25,1.82450508]
[1768686113705,6.93099035,144.28,144.25,1.82450508]
[1768686114004,1.8976716,144.27,144.25,1.82450508]
[1768686115120,8.82866195,144.28,144.25,1.82450508]
[1768686123329,8.82866195,144.28,144.25,8.75676875]
[1768686123330,1.8976716,144.28,144.25,8.75676875]
[1768686123803,8.8286781,144.28,144.25,1.82450508]
[1768686124834,8.8286781,144.28,144.25,3.00450508]
[1768686128406,1.8976716,144.26,144.24,15.18]
[1768686128832,1.8976716,144.26,144.24,22.11287579]
[1768686129517,1.8976716,144.26,144.25,1.18]
[1768686130131,3.96536864,144.26,144.23,1.88011374]
[1768686130428,1.62915747,144.25,144.23,15.18]
[1768686130729,3.69685451,144.26,144.23,17.06011374]
[1768686131030,3.69685451,144.26,144.23,23.99337147]
[1768686131406,1.62915747,144.26,144.23,23.99337147]
[1768686133831,1.62915747,144.26,144.24,1.88011374]
[1768686141517,1.62915747,144.26,144.24,8.81295554]
[1768686142032,1.62452485,144.27,144.24,8.81295554]
[1768686162660,8.55602382,144.27,144.24,1.88011374]
[1768686162860,10.62319471,144.27,144.24,1.88011374]
[1768686163881,8.55602382,144.27,144.24,1.88011374]
[1768686180490,1.60780434,144.26,144.23,8.75400486]
[1768686180694,1.60780434,144.26,144.23,6.93318248]
[1768686181578,1.60748734,144.25,144.22,23.93463751]
[1768686185800,1.60748734,144.25,144.22,8.75463751]
[1768686187297,1.60748734,144.25,144.21,2.06717089]
[1768686187595,1.60748734,144.25,144.21,17.24717089]
[1768686189286,1.60748734,144.25,144.22,1.82082238]
[1768686189487,1.60748734,144.25,144.22,8.75467344]
[1768686202005,1.60748734,144.25,144.23,8.84235381]
[1768686202388,1.84493777,144.26,144.23,8.84235381]
[1768686202897,1.84493777,144.26,144.24,1.90900297]
[1768686213213,1.84493777,144.28,144.25,1.90900297]
[1768686214512,1.80897166,144.27,144.24,8.72455283]
[1768686215413,1.80897166,144.26,144.21,8.7262386]
[1768686215715,24.26012377,144.27,144.22,1.791963]
[1768686215716,1.80897166,144.25,144.22,1.791963]
[1768686215893,3.8764855,144.25,144.22,8.725765]
[1768686216191,1.80897166,144.24,144.22,8.725765]
[1768686217393,3.8764855,144.25,144.22,8.725765]
[1768686218109,1.80897166,144.24,144.22,8.725765]
[1768686218316,1.80897166,144.24,144.22,6.933802]
[1768686219003,3.8764855,144.25,144.22,6.933802]
[1768686219607,3.8764855,144.25,144.21,6.93433187]
[1768686220320,3.8764855,144.25,144.22,1.791963]
[1768686223216,3.8764855,144.25,144.22,8.72556322]
[1768686228329,1.80897166,144.25,144.22,8.72556322]
[1768686228510,3.8764855,144.25,144.22,8.72556322]
[1768686239219,21.20510544,144.25,144.22,8.72556322]
[1768686244041,3.8764855,144.25,144.22,8.72556322]
[1768686244247,1.80897166,144.25,144.22,8.72556322]
[1768686244543,3.8764855,144.25,144.22,8.72556322]
[1768686244844,1.80897166,144.25,144.22,8.72556322]
[1768686245020,3.8764855,144.25,144.22,8.72556322]
[1768686246745,22.71306359,144.26,144.23,1.90542325]
[1768686247051,1.90934666,144.26,144.23,1.90542325]
[1768686248148,1.90934666,144.26,144.23,8.8387016]
[1768686250245,29.6432439,144.27,144.24,1.90542325]
[1768686256564,22.71162104,144.27,144.24,8.83811698]
[1768686256948,29.64318061,144.27,144.24,1.90542325]
[1768686257166,8.84090623,144.27,144.24,1.90542325]
[1768686257464,15.77416235,144.27,144.24,1.90542325]
[1768686277883,8.99898188,144.26,144.24,1.90542325]
[1768686278084,6.93197881,144.26,144.24,1.90542325]
[1768686281080,8.77389301,144.26,144.24,1.90542325]
[1768686283790,8.77389301,144.26,144.23,1.9346117]
[1768686317610,4.01205714,144.25,144.22,17.11081956]
[1768686317784,1.94505407,144.24,144.22,17.11081956]
[1768686318794,1.94505407,144.24,144.22,1.93081956]
[1768686320714,4.01205714,144.24,144.22,1.93081956]
[1768686321389,4.01316107,144.24,144.22,1.93081956]
[1768686323303,4.01316107,144.24,144.21,24.07490014]
[1768686326016,4.01316107,144.24,144.23,21.45]
[1768686326204,4.01316107,144.24,144.21,24.07490014]
[1768686327101,10.94612568,144.24,144.21,17.14077643]
[1768686329024,4.01316107,144.24,144.21,24.07509425]
[1768686329612,4.01316107,144.24,144.22,1.96077643]
[1768686330426,1.94505407,144.24,144.22,1.96077643]
[1768686334230,8.83373128,144.25,144.22,1.96077643]
[1768686337138,1.90112328,144.24,144.22,1.96077643]
[1768686338525,1.90112328,144.24,144.21,23.90601443]
[1768686340637,1.90112328,144.24,144.22,8.72550426]
[1768686352345,120.62630103,144.29,144.23,1.86702731]
[1768686352550,2.068107,144.28,144.23,1.86702731]
[1768686352848,2.068107,144.27,144.23,1.86702731]
[1768686353531,2.068107,144.27,144.24,6.93288962]
[1768686353935,2.068107,144.27,144.24,8.79991693]
[1768686354340,3.70686079,144.27,144.24,8.79991693]
[1768686355442,1.63875379,144.27,144.24,8.79991693]
[1768686355643,3.70686079,144.27,144.24,8.79991693]
[1768686357750,10.63833632,144.27,144.24,8.79991693]
[1768686358354,10.63833632,144.27,144.24,2.89702731]
[1768686360454,10.63833632,144.27,144.24,1.86702731]
[1768686360954,6.93147553,144.27,144.24,1.86702731]
[1768686361155,8.99958253,144.27,144.24,1.86702731]
[1768686362142,10.63071685,144.27,144.24,1.86702731]
[1768686366058,8.56260985,144.27,144.24,1.86702731]
[1768686366238,10.63071685,144.27,144.24,1.86702731]
[1768686369458,8.56260985,144.27,144.24,1.86702731]
[1768686370259,140.03206973,144.29,144.25,1.86702731]
[1768686370260,21.02035111,144.29,144.25,1.86702731]
[1768686370435,1.61458241,144.29,144.25,2.068107]
[1768686370636,3.68268941,144.3,144.26,1.86702731]
[1768686370859,3.68268941,144.3,144.26,1.80702731]
[1768686371264,6.93067714,144.29,144.26,1.80702731]
[1768686386365,8.5786861,144.29,144.26,1.80702731]
[1768686397380,10.64510659,144.29,144.26,1.80702731]
[1768686398775,10.64510659,144.29,144.26,2.82702731]
[1768686404098,8.5786861,144.29,144.26,2.82702731]
[1768686407092,10.64510659,144.29,144.26,2.82702731]
[1768686408291,8.5786861,144.29,144.26,2.82702731]
[1768686408491,10.64510659,144.29,144.26,2.82702731]
[1768686420607,2.06642049,144.28,144.26,2.82702731]
[1768686420783,1.60660485,144.27,144.26,1.02]
[1768686422203,10.60217414,144.28,144.26,1.02]
[1768686430312,3.66426619,144.27,144.24,1.89162404]
[1768686430491,2.06642049,144.26,144.24,1.89162404]
[1768686430803,3.66426619,144.27,144.24,1.89162404]
[1768686432006,10.59613259,144.27,144.24,1.89162404]
[1768686432403,2.06642049,144.26,144.24,1.89162404]
[1768686432714,3.66263255,144.26,144.23,1.89162404]
[1768686434214,3.66263255,144.26,144.23,8.82499138]
[1768686437514,1.59228933,144.25,144.22,17.07162404]
[1768686438511,1.59228933,144.25,144.22,24.00537685]
[1768686441613,10.58766787,144.26,144.23,1.89162404]
[1768686445016,8.52124738,144.26,144.23,1.89162404]
[1768686445222,10.58766787,144.26,144.23,1.89162404]
[1768686445422,2.06777616,144.25,144.23,1.89162404]
[1768686452523,3.64893241,144.25,144.23,1.89162404]
[1768686452707,3.64893241,144.25,144.22,8.8488784]
[1768686455224,10.58138085,144.25,144.22,1.91512559]
[1768686462440,3.64893241,144.25,144.22,8.84888271]
[1768686463415,10.5813832,144.25,144.22,1.91512559]
[1768686472243,10.5813832,144.25,144.22,8.84896606]
[1768686473651,9.00022695,144.25,144.23,1.92040082]
[1768686475045,9.00022695,144.25,144.22,1.92040082]
[1768686475345,6.93245079,144.25,144.22,1.92040082]
[1768686475548,9.00022695,144.25,144.22,1.92040082]
[1768686477954,2.06777616,144.25,144.22,8.85420188]
[1768686482968,3.63198569,144.25,144.22,8.85420188]
[1768686483564,10.56439877,144.25,144.22,8.85420188]
[1768686486863,10.56439877,144.25,144.22,1.92040082]
[1768686487060,2.06777616,144.24,144.22,1.92040082]
[1768686487464,10.56439877,144.25,144.22,1.92040082]
[1768686493374,8.49662261,144.25,144.22,1.92040082]
[1768686510992,10.56462467,144.25,144.22,1.92040082]
[1768686512788,8.49662261,144.25,144.22,1.92040082]
[1768686512980,10.56462467,144.25,144.22,1.92040082]
[1768686522180,3.63221159,144.25,144.22,8.85423728]
[1768686522396,103.3,144.26,144.23,1.7269056]
[1768686523882,103.3,144.26,144.23,8.66027442]
[1768686524373,103.3,144.26,144.24,1.7269056]
[1768686525507,10.54949564,144.27,144.24,1.7269056]
[1768686525695,8.48149358,144.27,144.24,1.7269056]
[1768686526298,31.63920942,144.28,144.25,1.7269056]
[1768686526603,10.54757432,144.28,144.25,1.7269056]
[1768686527611,6.93098169,144.28,144.25,1.7269056]
[1768686530610,8.99898375,144.28,144.25,1.7269056]
[1768686530911,6.93098169,144.28,144.25,1.7269056]
[1768686531106,8.99898375,144.28,144.25,1.7269056]
[1768686532711,13.86356896,144.29,144.26,1.76003259]
[1768686533210,6.93068659,144.29,144.26,1.76003259]
[1768686533710,8.47731119,144.29,144.26,1.76003259]
[1768686535492,6.93000693,144.3,144.26,1.76003259]
[1768686535693,8.99800899,144.3,144.26,1.76003259]
[1768686535900,10.54416984,144.3,144.26,1.76003259]
[1768686540404,10.54416984,144.3,144.27,1.76003259]
[1768686540999,8.47616778,144.3,144.27,1.76003259]
[1768686541207,120.62437968,144.31,144.27,1.76003259]
[1768686541208,111.7744285,144.31,144.27,1.76003259]
[1768686541407,110.22959632,144.31,144.28,1.76003259]
[1768686541608,10.54200547,144.32,144.28,1.76003259]
[1768686541797,8.99717329,144.32,144.28,1.76003259]
[1768686542334,8.99717329,144.32,144.29,1.76003259]
[1768686542828,6.92917123,144.32,144.29,1.76003259]
[1768686546719,10.53988171,144.34,144.3,1.76003259]
[1768686546924,10.53988171,144.34,144.3,1.70003259]
[1768686547319,8.47187965,144.34,144.3,1.70003259]
[1768686547526,10.53988171,144.34,144.3,1.70003259]
[1768686548426,8.99608852,144.34,144.3,6.92997687]
[1768686548832,6.92808646,144.34,144.31,1.76003259]
[1768686549007,6.92808646,144.34,144.31,1.70003259]
[1768686549320,8.99608852,144.34,144.31,1.70003259]
[1768686552429,6.92779087,144.35,144.32,1.76003259]
[1768686552608,6.92779087,144.35,144.32,1.70003259]
[1768686552808,10.85789502,144.36,144.32,1.70003259]
[1768686553815,10.85789502,144.36,144.32,6.9289863]
[1768686554532,10.85789502,144.36,144.33,1.76003259]
[1768686554733,10.85789502,144.36,144.33,1.70003259]
[1768686558034,10.85789502,144.36,144.33,1.64003259]
[1768686560419,8.78989296,144.36,144.33,1.64003259]
[1768686560821,10.85789502,144.36,144.33,1.64003259]
[1768686561515,8.78989296,144.36,144.33,1.64003259]
[1768686561716,10.85789502,144.36,144.33,1.64003259]
[1768686561936,10.85789502,144.36,144.33,1.58003259]
[1768686564127,8.78989296,144.36,144.33,1.58003259]
[1768686564326,10.85789502,144.36,144.33,1.58003259]
[1768686569343,10.85478631,144.36,144.33,1.58003259]
[1768686577347,8.99262225,144.35,144.33,1.58003259]
[1768686586270,1.87793975,144.33,144.27,17.32856304]
[1768686586439,2.06489335,144.32,144.28,22.11057411]
[1768686588262,2.06489335,144.32,144.29,1.88762848]
[1768686589269,2.06489335,144.32,144.29,8.81797262]
[1768686589441,2.06489335,144.32,144.3,1.88762848]
[1768686593346,8.99363984,144.33,144.3,6.92997857]
[1768686593669,2.06489335,144.33,144.31,1.72286938]
[1768686600556,3.95806039,144.33,144.31,1.72286938]
[1768686600758,3.95806039,144.33,144.3,1.72286938]
[1768686601257,1.89316704,144.32,144.29,1.72286938]
[1768686602773,1.89316704,144.32,144.29,8.65325667]
[1768686604083,3.95806039,144.32,144.29,8.65325667]
[1768686609477,1.89316704,144.32,144.29,8.65325667]
[1768686609670,3.95806039,144.32,144.29,8.65325667]
[1768686616484,10.88714043,144.32,144.29,1.72286938]
[1768686616881,8.82224708,144.32,144.29,1.72286938]
[1768686617084,10.88714043,144.32,144.29,1.72286938]
[1768686617592,3.95806039,144.32,144.29,8.65330591]
[1768686631293,3.95906826,144.32,144.29,8.65330591]
[1768686631592,10.88814697,144.32,144.29,1.72286938]
[1768686639792,1.86330192,144.31,144.28,8.74699749]
[1768686640107,2.06590122,144.31,144.27,23.9276203]
[1768686640782,2.06590122,144.31,144.27,8.7476203]
[1768686641295,8.99553444,144.31,144.27,8.7476203]
[1768686641876,10.85883636,144.31,144.27,8.7476203]
[1768686642702,3.92920314,144.3,144.27,8.7476203]
[1768686645282,3.92920314,144.3,144.28,1.81622494]
[1768686645796,1.86330192,144.3,144.28,1.81622494]
[1768686654809,1.86330192,144.3,144.27,1.86078185]
[1768686659914,1.86330192,144.3,144.27,8.79183652]
[1768686660609,1.83240039,144.27,144.23,1.86078185]
[1768686660807,24.25504316,144.3,144.23,8.79397707]
[1768686661013,2.06590122,144.27,144.23,8.79397707]
[1768686661195,2.06590122,144.27,144.23,6.93319522]
[1768686661392,2.06590122,144.27,144.24,1.86078185]
[1768686661596,2.06590122,144.27,144.24,8.79351246]
[1768686662689,1.83240039,144.28,144.24,8.79351246]
[1768686663002,3.89830161,144.27,144.24,8.79351246]
[1768686670209,3.89830161,144.27,144.25,1.86078185]
[1768686670513,2.06590122,144.27,144.25,1.86078185]
[1768686674320,3.89830161,144.27,144.25,1.86078185]
[1768686674810,3.89830161,144.27,144.24,1.86078185]
[1768686676717,3.89830161,144.27,144.24,8.79351585]
[1768686679126,1.83240039,144.27,144.24,8.79351585]
[1768686679301,3.89830161,144.27,144.25,1.86078185]
[1768686680623,1.83240039,144.27,144.25,1.86078185]
[1768686680927,3.89830161,144.27,144.25,1.86078185]
[1768686682430,3.89830161,144.27,144.24,8.76174273]
[1768686684534,3.7703497,144.27,144.24,8.76174273]
[1768686690134,10.70186584,144.27,144.24,1.82918368]
[1768686690633,1.70444848,144.26,144.24,1.82918368]
[1768686691136,1.20444848,144.26,144.24,1.82918368]
[1768686692030,3.2703497,144.26,144.24,1.82918368]
[1768686692236,3.2703497,144.26,144.23,22.11319353]
[1768686692237,3.2703497,144.26,144.23,23.94237721]
[1768686693336,3.27214945,144.26,144.23,23.94237721]
[1768686698736,10.20410673,144.26,144.23,17.00918368]
[1768686703047,10.20410673,144.26,144.23,1.82918368]
[1768686703747,2.06770097,144.25,144.23,1.82918368]
[1768686708946,3.89506493,144.25,144.23,1.82918368]
[1768686709149,10.82754039,144.25,144.22,1.681136]
[1768686709535,2.06770097,144.24,144.22,1.681136]
[1768686711856,3.88417354,144.24,144.21,23.90447268]
[1768686712152,10.81712726,144.24,144.21,16.9702639]
[1768686712940,3.88417354,144.24,144.21,16.9702639]
[1768686713252,3.88417354,144.24,144.21,23.90459284]
[1768686719764,3.88417354,144.24,144.21,8.72459284]
[1768686721170,3.88417354,144.24,144.22,1.7902639]
[1768686721571,2.06770097,144.24,144.22,1.7902639]
[1768686722473,10.81714416,144.24,144.21,1.7902639]
[1768686722650,3.88417354,144.23,144.2,16.9702639]
[1768686725249,1.81647257,144.23,144.2,16.9702639]
[1768686727970,1.81647257,144.23,144.2,1.7902639]
[1768686729168,8.74986421,144.23,144.2,1.7902639]
[1768686736380,17.33107303,144.25,144.2,1.7902639]
[1768686736590,8.74956538,144.24,144.21,1.7902639]
[1768686737293,10.81726635,144.24,144.21,1.7902639]
[1768686740777,8.74956538,144.24,144.21,1.7902639]
[1768686740985,10.81726635,144.24,144.21,1.7902639]
[1768686750395,6.93309281,144.24,144.22,1.7101918]
[1768686750588,3.89864503,144.26,144.22,1.7101918]
[1768686751486,9.00024374,144.25,144.22,1.7101918]
[1768686755310,9.00033777,144.25,144.22,1.7101918]
[1768686764004,6.93254277,144.25,144.22,1.7101918]
[1768686765311,8.7347195,144.25,144.22,1.7101918]
[1768686765814,10.8025145,144.25,144.22,1.7101918]
[1768686767906,1.80217673,144.24,144.21,8.77358943]
[1768686769814,1.80217673,144.24,144.21,6.93432272]
[1768686770018,3.86997173,144.25,144.22,8.77302736]
[1768686777338,1.80217673,144.25,144.22,8.77302736]
[1768686786939,6.93207773,144.26,144.22,6.93376065]
[1768686787110,0.2,144.39,144.23,1.72551663]
[1768686787111,3.84093785,144.27,144.23,1.72551663]